[Event "Titled Tuesday Blitz June 13 Late 2023"]
[White "Matsuura, Frederico"]
[Black "Peycheva, Gergana"]
[WhiteFideId "2107848"]
[BlackFideId "2916711"]
[WhiteElo "2302"]
[BlackElo "2216"]
[Result "1/2-1/2"]
[Round "5"]
[TimeControl "180+2"]
[Date "2023.06.13"]
[WhiteClock "0:00:08"]
[BlackClock "0:00:08"]
[Board "108"]

1. d4 {[%clk 0:03:00]}  Nf6 {[%clk 0:02:58]} 2. c4 {[%clk 0:03:00]}  e6 {[%clk 0:02:58]} 3. Nf3 {[%clk 0:03:00]}  d5 {[%clk 0:02:58]} 4. Nc3 {[%clk 0:03:00]}  Be7 {[%clk 0:02:57]} 5. Bg5 {[%clk 0:03:00]}  h6 {[%clk 0:02:54]} 6. Bxf6 {[%clk 0:03:00]}  Bxf6 {[%clk 0:02:54]} 7. Qc2 {[%clk 0:03:01]}  c5 {[%clk 0:02:48]} 8. dxc5 {[%clk 0:02:53]}  Qa5 {[%clk 0:02:47]} 9. cxd5 {[%clk 0:02:45]}  exd5 {[%clk 0:02:46]} 10. e3 {[%clk 0:02:40]}  Qxc5 {[%clk 0:02:39]} 11. Bb5+ {[%clk 0:02:36]}  Nc6 {[%clk 0:02:37]} 12. O-O {[%clk 0:02:34]}  O-O {[%clk 0:02:22]} 13. Rac1 {[%clk 0:02:04]}  Bg4 {[%clk 0:02:15]} 14. Be2 {[%clk 0:01:49]}  Rac8 {[%clk 0:02:10]} 15. Nb5 {[%clk 0:01:43]}  Qxc2 {[%clk 0:02:02]} 16. Rxc2 {[%clk 0:01:42]}  Nb4 {[%clk 0:01:47]} 17. Rxc8 {[%clk 0:01:33]}  Rxc8 {[%clk 0:01:48]} 18. a3 {[%clk 0:01:30]}  Nc6 {[%clk 0:01:31]} 19. h3 {[%clk 0:01:24]}  Bh5 {[%clk 0:01:30]} 20. Nd6 {[%clk 0:01:08]}  Rc7 {[%clk 0:01:29]} 21. Ne8 {[%clk 0:01:07]}  Rd7 {[%clk 0:01:15]} 22. Nxf6+ {[%clk 0:01:07]}  gxf6 {[%clk 0:01:16]} 23. Rd1 {[%clk 0:01:07]}  Ne7 {[%clk 0:00:55]} 24. Kf1 {[%clk 0:01:06]}  Rc7 {[%clk 0:00:55]} 25. Nd4 {[%clk 0:01:06]}  Bg6 {[%clk 0:00:51]} 26. Ke1 {[%clk 0:01:03]}  a6 {[%clk 0:00:51]} 27. Kd2 {[%clk 0:01:03]}  Nc6 {[%clk 0:00:47]} 28. Rc1 {[%clk 0:01:02]}  a5 {[%clk 0:00:34]} 29. Bb5 {[%clk 0:00:51]}  Nxd4 {[%clk 0:00:31]} 30. Rxc7 {[%clk 0:00:46]}  Nxb5 {[%clk 0:00:31]} 31. Rxb7 {[%clk 0:00:46]}  Nd6 {[%clk 0:00:31]} 32. Rd7 {[%clk 0:00:40]}  Nc4+ {[%clk 0:00:10]} 33. Kc3 {[%clk 0:00:37]}  Be4 {[%clk 0:00:09]} 34. f3 {[%clk 0:00:36]}  Bb1 {[%clk 0:00:08]} 35. e4 {[%clk 0:00:24]}  Ne3 {[%clk 0:00:04]} 36. Kd4 {[%clk 0:00:22]}  Nxg2 {[%clk 0:00:04]} 37. exd5 {[%clk 0:00:22]}  Kf8 {[%clk 0:00:05]} 38. d6 {[%clk 0:00:22]}  Ke8 {[%clk 0:00:04]} 39. Re7+ {[%clk 0:00:21]}  Kd8 {[%clk 0:00:04]} 40. Rxf7 {[%clk 0:00:20]}  f5 {[%clk 0:00:05]} 41. Kc5 {[%clk 0:00:19]}  Nf4 {[%clk 0:00:02]} 42. Kc6 {[%clk 0:00:18]}  Ne6 {[%clk 0:00:02]} 43. Rd7+ {[%clk 0:00:18]}  Kc8 {[%clk 0:00:01]} 44. Rh7 {[%clk 0:00:17]}  Nd4+ {[%clk 0:00:02]} 45. Kd5 {[%clk 0:00:17]}  Nxf3 {[%clk 0:00:03]} 46. Rxh6 {[%clk 0:00:14]}  Be4+ {[%clk 0:00:04]} 47. Kc5 {[%clk 0:00:14]}  Ne5 {[%clk 0:00:04]} 48. Kb5 {[%clk 0:00:12]}  Nd3 {[%clk 0:00:05]} 49. b3 {[%clk 0:00:12]}  Nb2 {[%clk 0:00:06]} 50. Kxa5 {[%clk 0:00:12]}  f4 {[%clk 0:00:06]} 51. Rf6 {[%clk 0:00:11]}  f3 {[%clk 0:00:06]} 52. h4 {[%clk 0:00:12]}  Nd3 {[%clk 0:00:06]} 53. b4 {[%clk 0:00:11]}  Ne5 {[%clk 0:00:06]} 54. h5 {[%clk 0:00:11]}  Ng4 {[%clk 0:00:07]} 55. Rf8+ {[%clk 0:00:10]}  Kd7 {[%clk 0:00:06]} 56. Rf4 {[%clk 0:00:10]}  f2 {[%clk 0:00:06]} 57. b5 {[%clk 0:00:07]}  Kxd6 {[%clk 0:00:03]} 58. b6 {[%clk 0:00:07]}  Ke5 {[%clk 0:00:03]} 59. Rxf2 {[%clk 0:00:05]}  Nxf2 {[%clk 0:00:03]} 60. h6 {[%clk 0:00:04]}  Kf6 {[%clk 0:00:02]} 61. Ka6 {[%clk 0:00:03]}  Kg6 {[%clk 0:00:02]} 62. b7 {[%clk 0:00:04]}  Bxb7+ {[%clk 0:00:02]} 63. Kxb7 {[%clk 0:00:04]}  Kxh6 {[%clk 0:00:03]} 64. a4 {[%clk 0:00:05]}  Nd3 {[%clk 0:00:03]} 65. a5 {[%clk 0:00:05]}  Kg6 {[%clk 0:00:03]} 66. Kc6 {[%clk 0:00:05]}  Nb4+ {[%clk 0:00:03]} 67. Kb5 {[%clk 0:00:05]}  Nd5 {[%clk 0:00:04]} 68. Kc5 {[%clk 0:00:05]}  Nc7 {[%clk 0:00:03]} 69. Kc6 {[%clk 0:00:06]}  Na6 {[%clk 0:00:04]} 70. Kb5 {[%clk 0:00:06]}  Nc7+ {[%clk 0:00:04]} 71. Kb6 {[%clk 0:00:06]}  Nd5+ {[%clk 0:00:04]} 72. Kc5 {[%clk 0:00:07]}  Nc7 {[%clk 0:00:04]} 73. Kd6 {[%clk 0:00:07]}  Na6 {[%clk 0:00:05]} 74. Kc6 {[%clk 0:00:07]}  Kf6 {[%clk 0:00:06]} 75. Kb6 {[%clk 0:00:08]}  Nb4 {[%clk 0:00:06]} 76. Kb5 {[%clk 0:00:08]}  Nd5 {[%clk 0:00:07]} 77. Kc5 {[%clk 0:00:08]}  Nc7 {[%clk 0:00:07]} 78. Kd6 {[%clk 0:00:08]}  Na6 {[%clk 0:00:07]} 79. Kd7 {[%clk 0:00:08]}  Ke5 {[%clk 0:00:07]} 80. Kc6 {[%clk 0:00:08]}  Kd4 {[%clk 0:00:07]} 81. Kb6 {[%clk 0:00:08]}  Nb4 {[%clk 0:00:07]} 82. Kb5 {[%clk 0:00:09]}  Kc3 {[%clk 0:00:08]} 83. Ka4 {[%clk 0:00:08]}  Kc4 {[%clk 0:00:08]} 84. a6 {[%clk 0:00:08]}  Nxa6 {[%clk 0:00:08]} 1/2-1/2


[Site "https://www.chess.com"]

[Event "Titled Tuesday Blitz June 13 Late 2023"]
[White "Badelka, Olga"]
[Black "campochess"]
[WhiteFideId "13509926"]
[WhiteElo "2375"]
[BlackElo "2229"]
[Result "1-0"]
[Round "5"]
[TimeControl "180+2"]
[Date "2023.06.13"]
[WhiteClock "0:00:01"]
[BlackClock "0:00:00"]
[Board "110"]

1. d4 {[%clk 0:03:00]}  Nf6 {[%clk 0:02:56]} 2. c4 {[%clk 0:03:01]}  c5 {[%clk 0:02:56]} 3. d5 {[%clk 0:03:00]}  b5 {[%clk 0:02:56]} 4. cxb5 {[%clk 0:03:00]}  a6 {[%clk 0:02:56]} 5. bxa6 {[%clk 0:03:00]}  g6 {[%clk 0:02:56]} 6. Nc3 {[%clk 0:02:57]}  Bxa6 {[%clk 0:02:55]} 7. e4 {[%clk 0:02:57]}  Bxf1 {[%clk 0:02:54]} 8. Kxf1 {[%clk 0:02:58]}  d6 {[%clk 0:02:54]} 9. Nf3 {[%clk 0:02:53]}  Bg7 {[%clk 0:02:54]} 10. Qc2 {[%clk 0:02:53]}  Nbd7 {[%clk 0:02:52]} 11. g3 {[%clk 0:02:51]}  O-O {[%clk 0:02:51]} 12. Kg2 {[%clk 0:02:46]}  Qb6 {[%clk 0:02:47]} 13. Rb1 {[%clk 0:02:35]}  Rfb8 {[%clk 0:02:45]} 14. b3 {[%clk 0:02:17]}  Qb7 {[%clk 0:02:42]} 15. Bb2 {[%clk 0:02:13]}  Ng4 {[%clk 0:02:30]} 16. h3 {[%clk 0:02:08]}  Nge5 {[%clk 0:02:27]} 17. Nxe5 {[%clk 0:02:08]}  Bxe5 {[%clk 0:02:23]} 18. Rhd1 {[%clk 0:01:48]}  Rf8 {[%clk 0:01:43]} 19. Na4 {[%clk 0:01:44]}  f5 {[%clk 0:01:34]} 20. Bxe5 {[%clk 0:01:24]}  Nxe5 {[%clk 0:01:32]} 21. f4 {[%clk 0:01:22]}  Nd7 {[%clk 0:01:27]} 22. Qe2 {[%clk 0:01:03]}  Nf6 {[%clk 0:01:20]} 23. exf5 {[%clk 0:01:01]}  gxf5 {[%clk 0:01:12]} 24. Qe6+ {[%clk 0:01:01]}  Rf7 {[%clk 0:01:03]} 25. Qxf5 {[%clk 0:01:00]}  Kh8 {[%clk 0:00:55]} 26. Qe6 {[%clk 0:00:57]}  Raf8 {[%clk 0:00:53]} 27. Rb2 {[%clk 0:00:42]}  Ne8 {[%clk 0:00:51]} 28. Re2 {[%clk 0:00:37]}  Nc7 {[%clk 0:00:49]} 29. Qe4 {[%clk 0:00:34]}  Nb5 {[%clk 0:00:48]} 30. h4 {[%clk 0:00:19]}  Nd4 {[%clk 0:00:37]} 31. Rxd4 {[%clk 0:00:18]}  cxd4 {[%clk 0:00:36]} 32. Qxd4+ {[%clk 0:00:19]}  Kg8 {[%clk 0:00:36]} 33. Nc3 {[%clk 0:00:11]}  Rg7 {[%clk 0:00:27]} 34. Ne4 {[%clk 0:00:08]}  Rf5 {[%clk 0:00:19]} 35. Rd2 {[%clk 0:00:07]}  h6 {[%clk 0:00:18]} 36. Nc3 {[%clk 0:00:05]}  e5 {[%clk 0:00:16]} 37. Qd3 {[%clk 0:00:03]}  Rgf7 {[%clk 0:00:14]} 38. fxe5 {[%clk 0:00:02]}  Rxe5 {[%clk 0:00:14]} 39. Kh2 {[%clk 0:00:02]}  Ref5 {[%clk 0:00:13]} 40. Ne4 {[%clk 0:00:02]}  Qc7 {[%clk 0:00:11]} 41. Kg2 {[%clk 0:00:02]}  Qb8 {[%clk 0:00:08]} 42. Qe3 {[%clk 0:00:02]}  Qf8 {[%clk 0:00:06]} 43. Re2 {[%clk 0:00:01]}  Rf3 {[%clk 0:00:06]} 44. Qd2 {[%clk 0:00:01]}  R7f5 {[%clk 0:00:05]} 45. a4 {[%clk 0:00:01]}  Qg7 {[%clk 0:00:05]} 46. a5 {[%clk 0:00:01]}  Rxb3 {[%clk 0:00:02]} 47. Qc2 {[%clk 0:00:01]}  Rff3 {[%clk 0:00:00]} 48. Qc8+ {[%clk 0:00:01]} 1-0


[Site "https://www.chess.com"]

[Event "Titled Tuesday Blitz June 13 Late 2023"]
[White "Aggelis, Nikolaos"]
[Black "Elaisaz"]
[WhiteFideId "4213220"]
[WhiteElo "2189"]
[BlackElo "2230"]
[Result "1-0"]
[Round "5"]
[TimeControl "180+2"]
[Date "2023.06.13"]
[WhiteClock "0:00:58"]
[BlackClock "0:00:17"]
[Board "111"]

1. c4 {[%clk 0:03:00]}  Nf6 {[%clk 0:02:49]} 2. g3 {[%clk 0:02:55]}  g6 {[%clk 0:02:49]} 3. b3 {[%clk 0:02:44]}  Bg7 {[%clk 0:02:50]} 4. Bb2 {[%clk 0:02:45]}  O-O {[%clk 0:02:50]} 5. Bg2 {[%clk 0:02:46]}  c5 {[%clk 0:02:46]} 6. Nf3 {[%clk 0:02:46]}  Nc6 {[%clk 0:02:38]} 7. d4 {[%clk 0:02:46]}  cxd4 {[%clk 0:02:37]} 8. Nxd4 {[%clk 0:02:47]}  Nxd4 {[%clk 0:02:35]} 9. Qxd4 {[%clk 0:02:46]}  d6 {[%clk 0:02:27]} 10. Nc3 {[%clk 0:02:44]}  a6 {[%clk 0:02:18]} 11. Nd5 {[%clk 0:02:41]}  Be6 {[%clk 0:02:01]} 12. O-O {[%clk 0:02:26]}  Rb8 {[%clk 0:01:57]} 13. Qd2 {[%clk 0:02:16]}  Bxd5 {[%clk 0:01:53]} 14. Bxd5 {[%clk 0:02:15]}  Nxd5 {[%clk 0:01:52]} 15. Bxg7 {[%clk 0:02:16]}  Kxg7 {[%clk 0:01:52]} 16. Qxd5 {[%clk 0:02:16]}  b5 {[%clk 0:01:50]} 17. Rac1 {[%clk 0:02:15]}  b4 {[%clk 0:01:38]} 18. Rfd1 {[%clk 0:02:08]}  Rc8 {[%clk 0:01:33]} 19. c5 {[%clk 0:02:07]}  dxc5 {[%clk 0:01:33]} 20. Qe5+ {[%clk 0:01:49]}  f6 {[%clk 0:01:32]} 21. Rxd8 {[%clk 0:01:48]}  fxe5 {[%clk 0:01:32]} 22. Rd5 {[%clk 0:01:45]}  Rfd8 {[%clk 0:01:06]} 23. Rxe5 {[%clk 0:01:38]}  Kf6 {[%clk 0:01:05]} 24. Rexc5 {[%clk 0:01:38]}  Rxc5 {[%clk 0:01:05]} 25. Rxc5 {[%clk 0:01:39]}  Rd2 {[%clk 0:01:03]} 26. Rc6+ {[%clk 0:01:37]}  Kf7 {[%clk 0:01:00]} 27. Rxa6 {[%clk 0:01:37]}  Rxe2 {[%clk 0:01:01]} 28. Kg2 {[%clk 0:01:34]}  h5 {[%clk 0:00:49]} 29. Kf3 {[%clk 0:01:33]}  Rc2 {[%clk 0:00:47]} 30. h4 {[%clk 0:01:31]}  e6 {[%clk 0:00:47]} 31. Ra4 {[%clk 0:01:30]}  Kf6 {[%clk 0:00:45]} 32. Rxb4 {[%clk 0:01:30]}  Rxa2 {[%clk 0:00:45]} 33. Rb8 {[%clk 0:01:27]}  Rb2 {[%clk 0:00:43]} 34. b4 {[%clk 0:01:27]}  Kg7 {[%clk 0:00:42]} 35. b5 {[%clk 0:01:27]}  e5 {[%clk 0:00:41]} 36. b6 {[%clk 0:01:26]}  e4+ {[%clk 0:00:41]} 37. Ke3 {[%clk 0:01:26]}  Kh7 {[%clk 0:00:38]} 38. Kxe4 {[%clk 0:01:13]}  Rxf2 {[%clk 0:00:34]} 39. Rc8 {[%clk 0:01:03]}  Rb2 {[%clk 0:00:33]} 40. Rc6 {[%clk 0:01:03]}  Kg7 {[%clk 0:00:30]} 41. Kd5 {[%clk 0:01:03]}  Rb3 {[%clk 0:00:28]} 42. Kd6 {[%clk 0:01:01]}  Rxg3 {[%clk 0:00:27]} 43. b7 {[%clk 0:01:00]}  Rb3 {[%clk 0:00:26]} 44. Kc7 {[%clk 0:01:01]}  g5 {[%clk 0:00:23]} 45. hxg5 {[%clk 0:01:00]}  h4 {[%clk 0:00:23]} 46. Rb6 {[%clk 0:01:00]}  Rc3+ {[%clk 0:00:17]} 47. Kd6 {[%clk 0:00:58]} 1-0


[Site "https://www.chess.com"]

[Event "Titled Tuesday Blitz June 13 Late 2023"]
[White "Petersson, Kjell"]
[Black "whiteglovethief"]
[WhiteFideId "1705148"]
[WhiteElo "2005"]
[BlackElo "2498"]
[Result "1-0"]
[Round "5"]
[TimeControl "180+2"]
[Date "2023.06.13"]
[WhiteClock "0:00:50"]
[BlackClock "0:00:59"]
[Board "115"]

1. d4 {[%clk 0:03:00]}  Nf6 {[%clk 0:02:58]} 2. Bf4 {[%clk 0:03:01]}  g6 {[%clk 0:02:54]} 3. Nc3 {[%clk 0:03:00]}  Bg7 {[%clk 0:02:54]} 4. e4 {[%clk 0:03:01]}  d6 {[%clk 0:02:53]} 5. Qd2 {[%clk 0:03:01]}  Nc6 {[%clk 0:02:49]} 6. O-O-O {[%clk 0:03:00]}  O-O {[%clk 0:02:46]} 7. f3 {[%clk 0:02:58]}  e5 {[%clk 0:02:43]} 8. dxe5 {[%clk 0:02:58]}  Nxe5 {[%clk 0:02:40]} 9. Bxe5 {[%clk 0:02:58]}  Be6 {[%clk 0:02:38]} 10. Bd4 {[%clk 0:02:52]}  c5 {[%clk 0:02:35]} 11. Bxf6 {[%clk 0:02:47]}  Bxf6 {[%clk 0:02:31]} 12. h4 {[%clk 0:02:35]}  Bg7 {[%clk 0:02:13]} 13. h5 {[%clk 0:02:32]}  Qa5 {[%clk 0:02:09]} 14. a3 {[%clk 0:02:21]}  a6 {[%clk 0:02:02]} 15. Kb1 {[%clk 0:02:15]}  b5 {[%clk 0:01:58]} 16. Nd5 {[%clk 0:02:15]}  b4 {[%clk 0:01:57]} 17. hxg6 {[%clk 0:02:10]}  fxg6 {[%clk 0:01:55]} 18. Nh3 {[%clk 0:02:02]}  Rab8 {[%clk 0:01:42]} 19. axb4 {[%clk 0:01:50]}  cxb4 {[%clk 0:01:38]} 20. Ng5 {[%clk 0:01:45]}  Rfe8 {[%clk 0:01:11]} 21. Rxh7 {[%clk 0:01:33]}  Bxb2 {[%clk 0:01:08]} 22. Kxb2 {[%clk 0:01:11]}  Qa3+ {[%clk 0:01:07]} 23. Kb1 {[%clk 0:01:11]}  b3 {[%clk 0:00:59]} 24. Nf6+ {[%clk 0:00:50]} 1-0


[Site "https://www.chess.com"]

[Event "Titled Tuesday Blitz June 13 Late 2023"]
[White "Bartel, Michal"]
[Black "Yang, Kevin"]
[WhiteFideId "1119257"]
[BlackFideId "30908485"]
[WhiteElo "2282"]
[BlackElo "2055"]
[Result "1-0"]
[Round "5"]
[TimeControl "180+2"]
[Date "2023.06.13"]
[WhiteClock "0:00:16"]
[BlackClock "0:00:00"]
[Board "117"]

1. e4 {[%clk 0:03:00]}  e6 {[%clk 0:02:57]} 2. Nc3 {[%clk 0:02:59]}  a6 {[%clk 0:02:57]} 3. g3 {[%clk 0:02:55]}  b5 {[%clk 0:02:52]} 4. Bg2 {[%clk 0:02:55]}  Bb7 {[%clk 0:02:52]} 5. a3 {[%clk 0:02:54]}  c5 {[%clk 0:02:50]} 6. Nge2 {[%clk 0:02:52]}  Ne7 {[%clk 0:02:44]} 7. O-O {[%clk 0:02:51]}  g6 {[%clk 0:02:37]} 8. d4 {[%clk 0:02:49]}  c4 {[%clk 0:02:32]} 9. Bg5 {[%clk 0:02:38]}  Bg7 {[%clk 0:02:27]} 10. d5 {[%clk 0:02:38]}  h6 {[%clk 0:02:22]} 11. Be3 {[%clk 0:02:34]}  exd5 {[%clk 0:02:16]} 12. exd5 {[%clk 0:02:34]}  d6 {[%clk 0:02:16]} 13. Bd4 {[%clk 0:02:26]}  O-O {[%clk 0:02:14]} 14. Bxg7 {[%clk 0:02:26]}  Kxg7 {[%clk 0:02:14]} 15. Qd4+ {[%clk 0:02:27]}  Kh7 {[%clk 0:02:13]} 16. g4 {[%clk 0:02:24]}  Nd7 {[%clk 0:02:11]} 17. Nf4 {[%clk 0:02:15]}  Ne5 {[%clk 0:02:00]} 18. h3 {[%clk 0:02:10]}  Ng8 {[%clk 0:01:57]} 19. Ne4 {[%clk 0:02:00]}  Nf6 {[%clk 0:01:42]} 20. Ng3 {[%clk 0:01:56]}  Nfd7 {[%clk 0:01:37]} 21. Rfe1 {[%clk 0:01:53]}  Qh4 {[%clk 0:01:32]} 22. Rad1 {[%clk 0:01:48]}  Rfe8 {[%clk 0:01:24]} 23. Ne4 {[%clk 0:01:42]}  Qe7 {[%clk 0:01:13]} 24. Re3 {[%clk 0:01:37]}  Nf6 {[%clk 0:01:03]} 25. Ng3 {[%clk 0:01:28]}  Qc7 {[%clk 0:00:56]} 26. Rde1 {[%clk 0:01:28]}  Re7 {[%clk 0:00:54]} 27. Qd2 {[%clk 0:00:52]}  Rae8 {[%clk 0:00:52]} 28. Kh1 {[%clk 0:00:49]}  Ng8 {[%clk 0:00:28]} 29. Ne4 {[%clk 0:00:46]}  Nd7 {[%clk 0:00:20]} 30. Qd4 {[%clk 0:00:46]}  Ba8 {[%clk 0:00:12]} 31. h4 {[%clk 0:00:46]}  Re5 {[%clk 0:00:11]} 32. g5 {[%clk 0:00:40]}  h5 {[%clk 0:00:08]} 33. Bh3 {[%clk 0:00:36]}  Nc5 {[%clk 0:00:05]} 34. f3 {[%clk 0:00:25]}  Nxe4 {[%clk 0:00:04]} 35. Rxe4 {[%clk 0:00:25]}  Bb7 {[%clk 0:00:03]} 36. Rxe5 {[%clk 0:00:20]}  Rxe5 {[%clk 0:00:04]} 37. Re4 {[%clk 0:00:19]}  Qe7 {[%clk 0:00:03]} 38. Bg2 {[%clk 0:00:16]}  Bc8 {[%clk 0:00:02]} 39. Qe3 {[%clk 0:00:16]}  Bf5 {[%clk 0:00:02]} 40. Rxe5 {[%clk 0:00:17]}  dxe5 {[%clk 0:00:02]} 41. Ne2 {[%clk 0:00:17]}  Qd6 {[%clk 0:00:02]} 42. Nc3 {[%clk 0:00:17]}  Ne7 {[%clk 0:00:02]} 43. Qa7 {[%clk 0:00:17]}  Bc8 {[%clk 0:00:00]} 44. f4 {[%clk 0:00:16]} 1-0


[Site "https://www.chess.com"]

[Event "Titled Tuesday Blitz June 13 Late 2023"]
[White "Gasparyan, David"]
[Black "Kim, Sergey"]
[WhiteFideId "13311980"]
[BlackFideId "13700570"]
[WhiteElo "2432"]
[BlackElo "2540"]
[Result "0-1"]
[Round "5"]
[TimeControl "180+2"]
[Date "2023.06.13"]
[WhiteClock "0:00:00"]
[BlackClock "0:00:26"]
[Board "118"]

1. Nf3 {[%clk 0:03:00]}  Nf6 {[%clk 0:02:59]} 2. g3 {[%clk 0:03:00]}  g6 {[%clk 0:02:59]} 3. Bg2 {[%clk 0:03:00]}  Bg7 {[%clk 0:02:59]} 4. O-O {[%clk 0:03:00]}  O-O {[%clk 0:03:00]} 5. d4 {[%clk 0:02:55]}  d6 {[%clk 0:03:00]} 6. Nc3 {[%clk 0:02:53]}  c6 {[%clk 0:02:58]} 7. e4 {[%clk 0:02:51]}  Qc7 {[%clk 0:02:56]} 8. a4 {[%clk 0:02:38]}  a5 {[%clk 0:02:55]} 9. h3 {[%clk 0:02:34]}  e5 {[%clk 0:02:55]} 10. Be3 {[%clk 0:02:32]}  Na6 {[%clk 0:02:54]} 11. Re1 {[%clk 0:02:29]}  Nb4 {[%clk 0:02:53]} 12. Nd2 {[%clk 0:02:24]}  Be6 {[%clk 0:02:45]} 13. Rc1 {[%clk 0:02:23]}  Rfe8 {[%clk 0:02:31]} 14. Qe2 {[%clk 0:02:10]}  Rad8 {[%clk 0:02:29]} 15. Qf1 {[%clk 0:01:46]}  b6 {[%clk 0:02:13]} 16. f4 {[%clk 0:01:31]}  Bc8 {[%clk 0:02:12]} 17. Qf2 {[%clk 0:01:19]}  Nd7 {[%clk 0:02:04]} 18. Rf1 {[%clk 0:01:13]}  exd4 {[%clk 0:01:37]} 19. Bxd4 {[%clk 0:01:12]}  Bxd4 {[%clk 0:01:34]} 20. Qxd4 {[%clk 0:01:13]}  Nc5 {[%clk 0:01:33]} 21. Nc4 {[%clk 0:01:01]}  Ba6 {[%clk 0:01:31]} 22. b3 {[%clk 0:00:56]}  d5 {[%clk 0:01:20]} 23. exd5 {[%clk 0:00:42]}  cxd5 {[%clk 0:01:20]} 24. Ne5 {[%clk 0:00:17]}  Ne6 {[%clk 0:01:10]} 25. Qf2 {[%clk 0:00:11]}  Bxf1 {[%clk 0:01:02]} 26. Bxf1 {[%clk 0:00:08]}  Qxc3 {[%clk 0:01:01]} 27. Bb5 {[%clk 0:00:08]}  Rf8 {[%clk 0:00:54]} 28. Kh2 {[%clk 0:00:06]}  Nd4 {[%clk 0:00:46]} 29. Rd1 {[%clk 0:00:04]}  Nxb5 {[%clk 0:00:44]} 30. axb5 {[%clk 0:00:03]}  Qxc2 {[%clk 0:00:43]} 31. Rd2 {[%clk 0:00:03]}  Qxb3 {[%clk 0:00:39]} 32. Qxb6 {[%clk 0:00:02]}  d4 {[%clk 0:00:34]} 33. Qf6 {[%clk 0:00:02]}  Qe6 {[%clk 0:00:32]} 34. Qh4 {[%clk 0:00:02]}  d3 {[%clk 0:00:28]} 35. Ng4 {[%clk 0:00:00]}  f5 {[%clk 0:00:26]} 0-1


[Site "https://www.chess.com"]

[Event "Titled Tuesday Blitz June 13 Late 2023"]
[White "Martins, Vinicius Tine"]
[Black "Carrasco Miranda, Andres"]
[WhiteFideId "2112884"]
[BlackFideId "3405990"]
[WhiteElo "2373"]
[BlackElo "2183"]
[Result "1-0"]
[Round "5"]
[TimeControl "180+2"]
[Date "2023.06.13"]
[WhiteClock "0:00:24"]
[BlackClock "0:00:00"]
[Board "119"]

1. e4 {[%clk 0:03:00]}  e5 {[%clk 0:02:57]} 2. Nf3 {[%clk 0:02:59]}  Nc6 {[%clk 0:02:56]} 3. Bb5 {[%clk 0:02:57]}  Nf6 {[%clk 0:02:56]} 4. d3 {[%clk 0:02:53]}  Bc5 {[%clk 0:02:55]} 5. Bxc6 {[%clk 0:02:47]}  dxc6 {[%clk 0:02:54]} 6. O-O {[%clk 0:02:47]}  Bd6 {[%clk 0:02:52]} 7. Nbd2 {[%clk 0:02:41]}  Be6 {[%clk 0:02:49]} 8. b3 {[%clk 0:02:31]}  Nd7 {[%clk 0:02:45]} 9. Bb2 {[%clk 0:02:31]}  O-O {[%clk 0:02:43]} 10. h3 {[%clk 0:02:29]}  f6 {[%clk 0:02:28]} 11. Nc4 {[%clk 0:02:22]}  Nc5 {[%clk 0:02:23]} 12. a4 {[%clk 0:02:13]}  Qd7 {[%clk 0:02:19]} 13. Nh2 {[%clk 0:01:44]}  a5 {[%clk 0:02:11]} 14. Nxd6 {[%clk 0:01:22]}  cxd6 {[%clk 0:02:12]} 15. f4 {[%clk 0:01:21]}  Rad8 {[%clk 0:02:04]} 16. f5 {[%clk 0:01:12]}  Bf7 {[%clk 0:02:03]} 17. Qf3 {[%clk 0:01:13]}  d5 {[%clk 0:02:01]} 18. Ba3 {[%clk 0:01:12]}  b6 {[%clk 0:02:00]} 19. Bxc5 {[%clk 0:01:03]}  bxc5 {[%clk 0:02:00]} 20. Ng4 {[%clk 0:01:00]}  Kh8 {[%clk 0:01:59]} 21. Ne3 {[%clk 0:00:59]}  Qb7 {[%clk 0:01:45]} 22. g4 {[%clk 0:00:53]}  dxe4 {[%clk 0:01:39]} 23. Qxe4 {[%clk 0:00:50]}  Rd4 {[%clk 0:01:38]} 24. Qg2 {[%clk 0:00:50]}  Bd5 {[%clk 0:01:31]} 25. Qg3 {[%clk 0:00:50]}  Qb4 {[%clk 0:01:17]} 26. Qe1 {[%clk 0:00:44]}  Rf4 {[%clk 0:01:10]} 27. Qxb4 {[%clk 0:00:43]}  cxb4 {[%clk 0:01:10]} 28. Rae1 {[%clk 0:00:34]}  Rxf1+ {[%clk 0:01:07]} 29. Nxf1 {[%clk 0:00:32]}  h5 {[%clk 0:01:06]} 30. Kf2 {[%clk 0:00:31]}  Kh7 {[%clk 0:01:05]} 31. Kg3 {[%clk 0:00:27]}  Rd8 {[%clk 0:01:00]} 32. Nd2 {[%clk 0:00:27]}  g5 {[%clk 0:00:58]} 33. Ne4 {[%clk 0:00:25]}  Bxe4 {[%clk 0:00:58]} 34. Rxe4 {[%clk 0:00:25]}  Rd5 {[%clk 0:00:52]} 35. Rc4 {[%clk 0:00:25]}  c5 {[%clk 0:00:52]} 36. Kf3 {[%clk 0:00:25]}  hxg4+ {[%clk 0:00:47]} 37. hxg4 {[%clk 0:00:26]}  Kg7 {[%clk 0:00:36]} 38. Ke4 {[%clk 0:00:26]}  Rd4+ {[%clk 0:00:29]} 39. Rxd4 {[%clk 0:00:26]}  cxd4 {[%clk 0:00:30]} 40. Kd5 {[%clk 0:00:25]}  Kf7 {[%clk 0:00:30]} 41. Kd6 {[%clk 0:00:24]}  Kf8 {[%clk 0:00:00]} 42. Ke6 {[%clk 0:00:24]} 1-0


[Site "https://www.chess.com"]

[Event "Titled Tuesday Blitz June 13 Late 2023"]
[White "angelgab3"]
[Black "Zenin, Dmitry"]
[BlackFideId "4127897"]
[WhiteElo "2516"]
[BlackElo "2215"]
[Result "1-0"]
[Round "5"]
[TimeControl "180+2"]
[Date "2023.06.13"]
[WhiteClock "0:01:52"]
[BlackClock "0:01:04"]
[Board "120"]

1. e4 {[%clk 0:03:00]}  e5 {[%clk 0:02:58]} 2. Nf3 {[%clk 0:03:01]}  Nc6 {[%clk 0:02:57]} 3. Bb5 {[%clk 0:03:02]}  a6 {[%clk 0:02:58]} 4. Ba4 {[%clk 0:03:02]}  Nf6 {[%clk 0:02:57]} 5. O-O {[%clk 0:03:03]}  Be7 {[%clk 0:02:57]} 6. Re1 {[%clk 0:03:03]}  b5 {[%clk 0:02:57]} 7. Bb3 {[%clk 0:03:04]}  d6 {[%clk 0:02:57]} 8. c3 {[%clk 0:03:04]}  O-O {[%clk 0:02:57]} 9. h3 {[%clk 0:03:04]}  Na5 {[%clk 0:02:57]} 10. Bc2 {[%clk 0:03:04]}  c5 {[%clk 0:02:57]} 11. d4 {[%clk 0:03:05]}  Bb7 {[%clk 0:02:57]} 12. Nbd2 {[%clk 0:03:02]}  cxd4 {[%clk 0:02:57]} 13. cxd4 {[%clk 0:03:03]}  exd4 {[%clk 0:02:57]} 14. Nxd4 {[%clk 0:03:04]}  Re8 {[%clk 0:02:56]} 15. Nf1 {[%clk 0:02:58]}  Bf8 {[%clk 0:02:56]} 16. Ng3 {[%clk 0:02:59]}  g6 {[%clk 0:02:56]} 17. b3 {[%clk 0:02:53]}  Rc8 {[%clk 0:02:53]} 18. Bb2 {[%clk 0:02:53]}  Nc6 {[%clk 0:02:54]} 19. Rc1 {[%clk 0:02:44]}  Bh6 {[%clk 0:02:49]} 20. Rb1 {[%clk 0:02:32]}  Nxd4 {[%clk 0:02:45]} 21. Bxd4 {[%clk 0:02:33]}  Bg7 {[%clk 0:02:40]} 22. a4 {[%clk 0:02:31]}  b4 {[%clk 0:02:23]} 23. Bd3 {[%clk 0:02:30]}  Nd7 {[%clk 0:02:08]} 24. Bc4 {[%clk 0:02:27]}  Ne5 {[%clk 0:02:06]} 25. Bf1 {[%clk 0:02:25]}  Nc6 {[%clk 0:01:55]} 26. Bxg7 {[%clk 0:02:26]}  Kxg7 {[%clk 0:01:55]} 27. Qd2 {[%clk 0:02:22]}  Qf6 {[%clk 0:01:50]} 28. Rbd1 {[%clk 0:02:22]}  Red8 {[%clk 0:01:44]} 29. Bc4 {[%clk 0:02:19]}  a5 {[%clk 0:01:25]} 30. Bd5 {[%clk 0:02:08]}  Rc7 {[%clk 0:01:22]} 31. Bxc6 {[%clk 0:02:01]}  Rxc6 {[%clk 0:01:19]} 32. e5 {[%clk 0:02:02]}  Qe6 {[%clk 0:01:10]} 33. exd6 {[%clk 0:01:52]}  Qxd6 {[%clk 0:01:04]} 34. Qb2+ {[%clk 0:01:52]} 1-0


[Site "https://www.chess.com"]